[Event "Titled Tuesday Blitz February 07 Early 2023"]
[White "Kornyukov, Alexey"]
[Black "Czopor, Maciej"]
[WhiteFideId "4150457"]
[BlackFideId "21805431"]
[WhiteElo "2452"]
[BlackElo "2385"]
[Result "0-1"]
[Round "03"]
[TimeControl "180+2"]
[Date "2023.02.07"]
[WhiteClock "0:02:23"]
[BlackClock "0:02:09"]

1. e4 {[%clk 0:03:00]}  c6 {[%clk 0:02:56]} 2. Nf3 {[%clk 0:02:58]}  g6 {[%clk 0:02:56]} 3. Nc3 {[%clk 0:02:57]}  Bg7 {[%clk 0:02:56]} 4. d4 {[%clk 0:02:49]}  d5 {[%clk 0:02:54]} 5. exd5 {[%clk 0:02:48]}  cxd5 {[%clk 0:02:54]} 6. Bb5+ {[%clk 0:02:47]}  Bd7 {[%clk 0:02:52]} 7. Bxd7+ {[%clk 0:02:46]}  Qxd7 {[%clk 0:02:52]} 8. O-O {[%clk 0:02:46]}  Nc6 {[%clk 0:02:52]} 9. Bf4 {[%clk 0:02:45]}  a6 {[%clk 0:02:43]} 10. Ne5 {[%clk 0:02:41]}  Nxe5 {[%clk 0:02:43]} 11. dxe5 {[%clk 0:02:41]}  e6 {[%clk 0:02:43]} 12. Ne2 {[%clk 0:02:36]}  Ne7 {[%clk 0:02:41]} 13. c4 {[%clk 0:02:36]}  dxc4 {[%clk 0:02:31]} 14. Qxd7+ {[%clk 0:02:30]}  Kxd7 {[%clk 0:02:32]} 15. Rfd1+ {[%clk 0:02:30]}  Nd5 {[%clk 0:02:27]} 16. Nc3 {[%clk 0:02:29]}  Kc6 {[%clk 0:02:27]} 17. Rac1 {[%clk 0:02:28]}  Nxf4 {[%clk 0:02:17]} 18. Rd6+ {[%clk 0:02:26]}  Kc7 {[%clk 0:02:17]} 19. Rcd1 {[%clk 0:02:26]}  Rhd8 {[%clk 0:02:11]} 20. Ne4 {[%clk 0:02:23]}  Bxe5 {[%clk 0:02:09]} 0-1


[Site "https://www.chess.com"]

[Event "Titled Tuesday Blitz February 07 Early 2023"]
[White "Omelja, Artem"]
[Black "Lopez Del Alamo, Antonio"]
[WhiteFideId "14119846"]
[BlackFideId "2227339"]
[WhiteElo "2446"]
[BlackElo "2280"]
[Result "0-1"]
[Round "03"]
[TimeControl "180+2"]
[Date "2023.02.07"]
[WhiteClock "0:00:07"]
[BlackClock "0:00:21"]

1. e4 {[%clk 0:03:00]}  c5 {[%clk 0:02:59]} 2. Nf3 {[%clk 0:02:54]}  e6 {[%clk 0:02:59]} 3. d3 {[%clk 0:02:54]}  Nc6 {[%clk 0:02:59]} 4. g3 {[%clk 0:02:54]}  g6 {[%clk 0:02:59]} 5. Bg2 {[%clk 0:02:54]}  Bg7 {[%clk 0:02:58]} 6. O-O {[%clk 0:02:54]}  Nge7 {[%clk 0:02:58]} 7. Re1 {[%clk 0:02:54]}  e5 {[%clk 0:02:58]} 8. c4 {[%clk 0:02:53]}  O-O {[%clk 0:02:58]} 9. Nc3 {[%clk 0:02:53]}  d6 {[%clk 0:02:55]} 10. Nd5 {[%clk 0:02:53]}  h6 {[%clk 0:02:52]} 11. Rb1 {[%clk 0:02:47]}  f5 {[%clk 0:02:47]} 12. a3 {[%clk 0:02:46]}  Nxd5 {[%clk 0:02:44]} 13. cxd5 {[%clk 0:02:45]}  Nd4 {[%clk 0:02:41]} 14. Nxd4 {[%clk 0:02:44]}  exd4 {[%clk 0:02:40]} 15. f4 {[%clk 0:02:42]}  fxe4 {[%clk 0:02:32]} 16. Bxe4 {[%clk 0:02:42]}  Bf5 {[%clk 0:02:30]} 17. Bd2 {[%clk 0:02:41]}  Qd7 {[%clk 0:02:27]} 18. Qf3 {[%clk 0:02:36]}  Rae8 {[%clk 0:02:25]} 19. b4 {[%clk 0:02:35]}  b6 {[%clk 0:02:23]} 20. bxc5 {[%clk 0:02:34]}  dxc5 {[%clk 0:02:21]} 21. a4 {[%clk 0:02:30]}  Bg4 {[%clk 0:01:51]} 22. Qf2 {[%clk 0:02:22]}  g5 {[%clk 0:01:50]} 23. a5 {[%clk 0:02:19]}  b5 {[%clk 0:01:48]} 24. Rec1 {[%clk 0:02:12]}  c4 {[%clk 0:01:37]} 25. Bb4 {[%clk 0:02:03]}  Rf6 {[%clk 0:01:23]} 26. Bc5 {[%clk 0:01:15]}  gxf4 {[%clk 0:01:07]} 27. gxf4 {[%clk 0:01:16]}  Bf5 {[%clk 0:01:03]} 28. Bxf5 {[%clk 0:01:05]}  Qxf5 {[%clk 0:01:01]} 29. dxc4 {[%clk 0:01:03]}  Rg6+ {[%clk 0:00:57]} 30. Qg3 {[%clk 0:00:56]}  Rxg3+ {[%clk 0:00:54]} 31. hxg3 {[%clk 0:00:57]}  Re3 {[%clk 0:00:50]} 32. Kf2 {[%clk 0:00:45]}  Qe4 {[%clk 0:00:47]} 33. Rb2 {[%clk 0:00:33]}  Qf3+ {[%clk 0:00:46]} 34. Kg1 {[%clk 0:00:33]}  Re2 {[%clk 0:00:38]} 35. Rxe2 {[%clk 0:00:20]}  Qxe2 {[%clk 0:00:39]} 36. Rf1 {[%clk 0:00:12]}  d3 {[%clk 0:00:38]} 37. d6 {[%clk 0:00:12]}  d2 {[%clk 0:00:37]} 38. cxb5 {[%clk 0:00:08]}  d1=Q {[%clk 0:00:34]} 39. Rxd1 {[%clk 0:00:08]}  Qxd1+ {[%clk 0:00:35]} 40. Kh2 {[%clk 0:00:09]}  Qe2+ {[%clk 0:00:33]} 41. Kh1 {[%clk 0:00:08]}  Qxb5 {[%clk 0:00:34]} 42. Bxa7 {[%clk 0:00:07]}  Qxa5 {[%clk 0:00:34]} 43. Bb8 {[%clk 0:00:07]}  Bf6 {[%clk 0:00:32]} 44. Bc7 {[%clk 0:00:07]}  Qd5+ {[%clk 0:00:27]} 45. Kh2 {[%clk 0:00:07]}  h5 {[%clk 0:00:27]} 46. Bb8 {[%clk 0:00:05]}  Kf7 {[%clk 0:00:27]} 47. Bc7 {[%clk 0:00:05]}  Kg6 {[%clk 0:00:27]} 48. Kg1 {[%clk 0:00:04]}  Kf5 {[%clk 0:00:27]} 49. Kf2 {[%clk 0:00:04]}  Ke4 {[%clk 0:00:26]} 50. Ke1 {[%clk 0:00:03]}  Qa2 {[%clk 0:00:26]} 51. Bb6 {[%clk 0:00:01]}  Kd3 {[%clk 0:00:25]} 52. Kf1 {[%clk 0:00:01]}  Qb1+ {[%clk 0:00:21]} 53. Kg2 {[%clk 0:00:01]}  Qxb6 {[%clk 0:00:22]} 54. Kh3 {[%clk 0:00:02]}  Qxd6 {[%clk 0:00:21]} 55. g4 {[%clk 0:00:03]}  hxg4+ {[%clk 0:00:21]} 56. Kxg4 {[%clk 0:00:04]}  Qe6+ {[%clk 0:00:21]} 57. Kh5 {[%clk 0:00:05]}  Qf5+ {[%clk 0:00:21]} 58. Kh6 {[%clk 0:00:04]}  Qxf4+ {[%clk 0:00:21]} 59. Kh7 {[%clk 0:00:05]}  Bh4 {[%clk 0:00:19]} 60. Kg8 {[%clk 0:00:04]}  Qf6 {[%clk 0:00:19]} 61. Kh7 {[%clk 0:00:04]}  Qg5 {[%clk 0:00:19]} 62. Kh8 {[%clk 0:00:05]}  Ke4 {[%clk 0:00:20]} 63. Kh7 {[%clk 0:00:05]}  Kf5 {[%clk 0:00:20]} 64. Kh8 {[%clk 0:00:06]}  Kf6 {[%clk 0:00:20]} 65. Kh7 {[%clk 0:00:07]}  Qg7# {[%clk 0:00:21]} 0-1


[Site "https://www.chess.com"]

[Event "Titled Tuesday Blitz February 07 Early 2023"]
[White "Lehtosaari, Mauri"]
[Black "Fajdetic, Hrvoje"]
[WhiteFideId "501999"]
[BlackFideId "14501945"]
[WhiteElo "2176"]
[BlackElo "2151"]
[Result "1/2-1/2"]
[Round "03"]
[TimeControl "180+2"]
[Date "2023.02.07"]
[WhiteClock "0:00:09"]
[BlackClock "0:00:05"]

1. d4 {[%clk 0:02:56]}  e6 {[%clk 0:02:59]} 2. Nf3 {[%clk 0:02:56]}  f5 {[%clk 0:02:59]} 3. Bf4 {[%clk 0:02:55]}  Nf6 {[%clk 0:02:59]} 4. e3 {[%clk 0:02:56]}  b6 {[%clk 0:02:59]} 5. h3 {[%clk 0:02:55]}  Bb7 {[%clk 0:02:59]} 6. Be2 {[%clk 0:02:56]}  Be7 {[%clk 0:02:59]} 7. O-O {[%clk 0:02:56]}  O-O {[%clk 0:02:59]} 8. c4 {[%clk 0:02:51]}  d6 {[%clk 0:02:59]} 9. Nc3 {[%clk 0:02:51]}  Qe8 {[%clk 0:02:59]} 10. Bh2 {[%clk 0:02:49]}  Ne4 {[%clk 0:02:58]} 11. Nxe4 {[%clk 0:02:47]}  Bxe4 {[%clk 0:02:59]} 12. Nd2 {[%clk 0:02:48]}  Bb7 {[%clk 0:02:55]} 13. Bf3 {[%clk 0:02:48]}  Bxf3 {[%clk 0:02:55]} 14. Qxf3 {[%clk 0:02:40]}  Qc6 {[%clk 0:02:48]} 15. d5 {[%clk 0:02:34]}  exd5 {[%clk 0:02:45]} 16. cxd5 {[%clk 0:02:35]}  Qb5 {[%clk 0:02:36]} 17. Nb3 {[%clk 0:02:27]}  Bf6 {[%clk 0:02:12]} 18. Rac1 {[%clk 0:02:19]}  Na6 {[%clk 0:02:07]} 19. Rc2 {[%clk 0:02:05]}  g6 {[%clk 0:02:03]} 20. Rfc1 {[%clk 0:01:48]}  Rf7 {[%clk 0:02:03]} 21. Nd4 {[%clk 0:01:38]}  Bxd4 {[%clk 0:01:58]} 22. exd4 {[%clk 0:01:39]}  Re8 {[%clk 0:01:40]} 23. Bf4 {[%clk 0:01:35]}  Re4 {[%clk 0:01:38]} 24. a3 {[%clk 0:00:49]}  Qxd5 {[%clk 0:01:36]} 25. Be3 {[%clk 0:00:35]}  f4 {[%clk 0:01:32]} 26. Bd2 {[%clk 0:00:35]}  Rxd4 {[%clk 0:01:28]} 27. Qe2 {[%clk 0:00:34]}  f3 {[%clk 0:01:18]} 28. Qxa6 {[%clk 0:00:26]}  Rxd2 {[%clk 0:01:17]} 29. Rxd2 {[%clk 0:00:24]}  Qxd2 {[%clk 0:01:15]} 30. Rf1 {[%clk 0:00:23]}  fxg2 {[%clk 0:01:13]} 31. Qc8+ {[%clk 0:00:21]}  Kg7 {[%clk 0:01:10]} 32. Kxg2 {[%clk 0:00:21]}  Qd5+ {[%clk 0:01:06]} 33. f3 {[%clk 0:00:21]}  Qg5+ {[%clk 0:00:54]} 34. Kh2 {[%clk 0:00:18]}  Re7 {[%clk 0:00:45]} 35. Rf2 {[%clk 0:00:13]}  Qe3 {[%clk 0:00:39]} 36. Kg2 {[%clk 0:00:12]}  Qc5 {[%clk 0:00:28]} 37. Qg4 {[%clk 0:00:10]}  Re5 {[%clk 0:00:25]} 38. h4 {[%clk 0:00:11]}  h5 {[%clk 0:00:22]} 39. Qd7+ {[%clk 0:00:10]}  Kh6 {[%clk 0:00:19]} 40. Qd8 {[%clk 0:00:11]}  Kg7 {[%clk 0:00:13]} 41. Qd7+ {[%clk 0:00:10]}  Kf6 {[%clk 0:00:12]} 42. Qd8+ {[%clk 0:00:10]}  Re7 {[%clk 0:00:12]} 43. Qh8+ {[%clk 0:00:09]}  Kf7 {[%clk 0:00:11]} 44. Qh7+ {[%clk 0:00:10]}  Kf6 {[%clk 0:00:12]} 45. Qh8+ {[%clk 0:00:10]}  Rg7 {[%clk 0:00:10]} 46. Qf8+ {[%clk 0:00:09]}  Rf7 {[%clk 0:00:08]} 47. Qh8+ {[%clk 0:00:09]}  Rg7 {[%clk 0:00:06]} 48. Qf8+ {[%clk 0:00:08]}  Rf7 {[%clk 0:00:06]} 49. Qh8+ {[%clk 0:00:09]}  Rg7 {[%clk 0:00:05]} 1/2-1/2


[Site "https://www.chess.com"]

[Event "Titled Tuesday Blitz February 07 Early 2023"]
[White "Adithya A Chullikkad"]
[Black "Nguyen, Hong Anh"]
[WhiteFideId "45078734"]
[BlackFideId "12406732"]
[WhiteElo "2259"]
[BlackElo "1970"]
[Result "1-0"]
[Round "03"]
[TimeControl "180+2"]
[Date "2023.02.07"]
[WhiteClock "0:00:40"]
[BlackClock "0:01:43"]

1. d4 {[%clk 0:03:00]}  Nf6 {[%clk 0:02:57]} 2. Bf4 {[%clk 0:02:58]}  g6 {[%clk 0:02:56]} 3. e3 {[%clk 0:02:57]}  Bg7 {[%clk 0:02:53]} 4. Bd3 {[%clk 0:02:57]}  O-O {[%clk 0:02:52]} 5. Nf3 {[%clk 0:02:56]}  c5 {[%clk 0:02:52]} 6. O-O {[%clk 0:02:55]}  cxd4 {[%clk 0:02:50]} 7. exd4 {[%clk 0:02:54]}  d6 {[%clk 0:02:51]} 8. c3 {[%clk 0:02:54]}  Nc6 {[%clk 0:02:51]} 9. Nbd2 {[%clk 0:02:53]}  Be6 {[%clk 0:02:51]} 10. Re1 {[%clk 0:02:41]}  Qb6 {[%clk 0:02:49]} 11. Qc2 {[%clk 0:02:41]}  Rac8 {[%clk 0:02:47]} 12. Bc4 {[%clk 0:02:39]}  Bf5 {[%clk 0:02:44]} 13. Qb3 {[%clk 0:02:37]}  Qc7 {[%clk 0:02:38]} 14. Bb5 {[%clk 0:02:28]}  Na5 {[%clk 0:02:36]} 15. Qd1 {[%clk 0:02:28]}  Nd5 {[%clk 0:02:35]} 16. Bg3 {[%clk 0:02:25]}  Qb6 {[%clk 0:02:35]} 17. a4 {[%clk 0:02:23]}  a6 {[%clk 0:02:35]} 18. c4 {[%clk 0:01:50]}  Nb4 {[%clk 0:02:31]} 19. Rxe7 {[%clk 0:01:49]}  axb5 {[%clk 0:02:29]} 20. cxb5 {[%clk 0:01:48]}  Nc2 {[%clk 0:02:28]} 21. Rc1 {[%clk 0:01:45]}  Nxd4 {[%clk 0:02:27]} 22. Rxc8 {[%clk 0:01:44]}  Rxc8 {[%clk 0:02:26]} 23. Nxd4 {[%clk 0:01:44]}  Qxd4 {[%clk 0:02:25]} 24. Qe1 {[%clk 0:01:43]}  Bf6 {[%clk 0:02:23]} 25. Re3 {[%clk 0:01:34]}  Qxb2 {[%clk 0:02:20]} 26. Re8+ {[%clk 0:01:33]}  Rxe8 {[%clk 0:02:19]} 27. Qxe8+ {[%clk 0:01:34]}  Kg7 {[%clk 0:02:20]} 28. Nf1 {[%clk 0:01:34]}  Qd4 {[%clk 0:02:15]} 29. h3 {[%clk 0:01:31]}  Nb3 {[%clk 0:02:12]} 30. Qb8 {[%clk 0:01:28]}  b6 {[%clk 0:02:12]} 31. Bxd6 {[%clk 0:01:26]}  Bh4 {[%clk 0:01:56]} 32. Qf8+ {[%clk 0:01:23]}  Kf6 {[%clk 0:01:54]} 33. Qe7+ {[%clk 0:01:03]}  Kg7 {[%clk 0:01:52]} 34. Be5+ {[%clk 0:00:58]}  Kh6 {[%clk 0:01:41]} 35. Qf8+ {[%clk 0:00:53]}  Kh5 {[%clk 0:01:41]} 36. Bxd4 {[%clk 0:00:52]}  Nxd4 {[%clk 0:01:42]} 37. g4+ {[%clk 0:00:52]}  Bxg4 {[%clk 0:01:42]} 38. hxg4+ {[%clk 0:00:53]}  Kxg4 {[%clk 0:01:43]} 39. Qxf7 {[%clk 0:00:40]} 1-0


[Site "https://www.chess.com"]

[Event "Titled Tuesday Blitz February 07 Early 2023"]
[White "Bilan, Danila"]
[Black "Burke, John F"]
[WhiteFideId "24161918"]
[BlackFideId "2052970"]
[WhiteElo "2303"]
[BlackElo "2013"]
[Result "1-0"]
[Round "03"]
[TimeControl "180+2"]
[Date "2023.02.07"]
[WhiteClock "0:00:07"]
[BlackClock "0:00:01"]

1. d4 {[%clk 0:02:57]}  c5 {[%clk 0:03:00]} 2. e3 {[%clk 0:02:56]}  e6 {[%clk 0:02:59]} 3. Nf3 {[%clk 0:02:56]}  Nf6 {[%clk 0:02:59]} 4. c4 {[%clk 0:02:55]}  b6 {[%clk 0:02:59]} 5. Nc3 {[%clk 0:02:54]}  Bb7 {[%clk 0:02:58]} 6. d5 {[%clk 0:02:38]}  exd5 {[%clk 0:02:57]} 7. cxd5 {[%clk 0:02:37]}  d6 {[%clk 0:02:56]} 8. Bd3 {[%clk 0:02:18]}  Nbd7 {[%clk 0:02:53]} 9. e4 {[%clk 0:02:17]}  a6 {[%clk 0:02:52]} 10. a4 {[%clk 0:02:17]}  Be7 {[%clk 0:02:47]} 11. O-O {[%clk 0:02:16]}  O-O {[%clk 0:02:47]} 12. h3 {[%clk 0:02:10]}  Re8 {[%clk 0:02:47]} 13. Qc2 {[%clk 0:02:05]}  Bf8 {[%clk 0:02:29]} 14. Bf4 {[%clk 0:02:00]}  Qc7 {[%clk 0:02:23]} 15. Bh2 {[%clk 0:01:54]}  g6 {[%clk 0:02:14]} 16. Nd2 {[%clk 0:01:36]}  Ne5 {[%clk 0:02:04]} 17. Nc4 {[%clk 0:01:32]}  Nfd7 {[%clk 0:01:50]} 18. f4 {[%clk 0:01:25]}  Nxc4 {[%clk 0:01:48]} 19. Bxc4 {[%clk 0:01:23]}  Bg7 {[%clk 0:01:49]} 20. Rae1 {[%clk 0:01:18]}  Re7 {[%clk 0:01:43]} 21. Qd3 {[%clk 0:01:11]}  Rae8 {[%clk 0:01:43]} 22. e5 {[%clk 0:00:59]}  Qc8 {[%clk 0:01:12]} 23. e6 {[%clk 0:00:43]}  Nf6 {[%clk 0:00:58]} 24. f5 {[%clk 0:00:40]}  Qd8 {[%clk 0:00:30]} 25. g4 {[%clk 0:00:24]}  gxf5 {[%clk 0:00:27]} 26. Rxf5 {[%clk 0:00:16]}  Kh8 {[%clk 0:00:23]} 27. Ref1 {[%clk 0:00:14]}  fxe6 {[%clk 0:00:20]} 28. Rxf6 {[%clk 0:00:12]}  Bxf6 {[%clk 0:00:18]} 29. Rxf6 {[%clk 0:00:13]}  exd5 {[%clk 0:00:19]} 30. Bxd5 {[%clk 0:00:13]}  Re1+ {[%clk 0:00:19]} 31. Rf1 {[%clk 0:00:13]}  Rxf1+ {[%clk 0:00:17]} 32. Qxf1 {[%clk 0:00:13]}  Qh4 {[%clk 0:00:10]} 33. Kg2 {[%clk 0:00:11]}  Bxd5+ {[%clk 0:00:05]} 34. Nxd5 {[%clk 0:00:11]}  Qg5 {[%clk 0:00:06]} 35. Nf4 {[%clk 0:00:10]}  Re4 {[%clk 0:00:02]} 36. Qf3 {[%clk 0:00:10]}  Qe7 {[%clk 0:00:02]} 37. Bg3 {[%clk 0:00:08]}  Re3 {[%clk 0:00:02]} 38. Qa8+ {[%clk 0:00:07]}  Kg7 {[%clk 0:00:01]} 39. Nh5+ {[%clk 0:00:08]}  Kh6 {[%clk 0:00:01]} 40. Bf4+ {[%clk 0:00:07]} 1-0


[Site "https://www.chess.com"]

[Event "Titled Tuesday Blitz February 07 Early 2023"]
[White "Shimanov, Aleksandr"]
[Black "Fabris, Alberto"]
[WhiteFideId "4198603"]
[BlackFideId "801348"]
[WhiteElo "2581"]
[BlackElo "2230"]
[Result "1-0"]
[Round "03"]
[TimeControl "180+2"]
[Date "2023.02.07"]
[WhiteClock "0:00:17"]
[BlackClock "0:00:03"]

1. e4 {[%clk 0:02:55]}  c5 {[%clk 0:02:59]} 2. Nf3 {[%clk 0:02:29]}  d6 {[%clk 0:03:00]} 3. Nc3 {[%clk 0:02:28]}  Nf6 {[%clk 0:02:59]} 4. e5 {[%clk 0:02:28]}  dxe5 {[%clk 0:02:57]} 5. Nxe5 {[%clk 0:02:29]}  e6 {[%clk 0:02:55]} 6. g3 {[%clk 0:02:26]}  Nbd7 {[%clk 0:02:54]} 7. Nc4 {[%clk 0:02:26]}  Be7 {[%clk 0:02:51]} 8. Bg2 {[%clk 0:02:26]}  O-O {[%clk 0:02:50]} 9. O-O {[%clk 0:02:26]}  Nb6 {[%clk 0:02:47]} 10. d3 {[%clk 0:02:25]}  a6 {[%clk 0:02:40]} 11. a4 {[%clk 0:02:23]}  Nxc4 {[%clk 0:02:39]} 12. dxc4 {[%clk 0:02:24]}  Qc7 {[%clk 0:02:28]} 13. Bf4 {[%clk 0:02:18]}  e5 {[%clk 0:02:28]} 14. Bg5 {[%clk 0:02:17]}  Rd8 {[%clk 0:02:22]} 15. Qe2 {[%clk 0:02:16]}  Be6 {[%clk 0:02:19]} 16. Bxf6 {[%clk 0:02:13]}  Bxf6 {[%clk 0:02:19]} 17. Nd5 {[%clk 0:02:14]}  Bxd5 {[%clk 0:02:17]} 18. Bxd5 {[%clk 0:02:15]}  Rd6 {[%clk 0:02:08]} 19. a5 {[%clk 0:02:14]}  Rad8 {[%clk 0:02:07]} 20. Kg2 {[%clk 0:02:12]}  g6 {[%clk 0:02:04]} 21. h4 {[%clk 0:02:09]}  h5 {[%clk 0:02:00]} 22. c3 {[%clk 0:02:09]}  Qe7 {[%clk 0:01:57]} 23. Qf3 {[%clk 0:02:07]}  R8d7 {[%clk 0:01:54]} 24. Rfe1 {[%clk 0:02:07]}  Bg7 {[%clk 0:01:52]} 25. Re2 {[%clk 0:02:03]}  Kh7 {[%clk 0:01:52]} 26. Rae1 {[%clk 0:02:02]}  f5 {[%clk 0:01:51]} 27. Qe3 {[%clk 0:02:00]}  Rc7 {[%clk 0:01:40]} 28. f3 {[%clk 0:01:40]}  Bf6 {[%clk 0:01:39]} 29. Rh1 {[%clk 0:01:38]}  Qg7 {[%clk 0:01:32]} 30. Qf2 {[%clk 0:01:37]}  Qh6 {[%clk 0:01:28]} 31. b4 {[%clk 0:01:30]}  cxb4 {[%clk 0:01:24]} 32. cxb4 {[%clk 0:01:31]}  Qf8 {[%clk 0:01:11]} 33. Rb1 {[%clk 0:01:24]}  Qd8 {[%clk 0:01:09]} 34. b5 {[%clk 0:01:22]}  Qd7 {[%clk 0:01:02]} 35. b6 {[%clk 0:01:12]}  Rc8 {[%clk 0:01:00]} 36. Rbe1 {[%clk 0:01:11]}  Qa4 {[%clk 0:00:55]} 37. Ra2 {[%clk 0:00:45]}  Qb4 {[%clk 0:00:52]} 38. Bxb7 {[%clk 0:00:38]}  Rxc4 {[%clk 0:00:50]} 39. Bxa6 {[%clk 0:00:38]}  Rc5 {[%clk 0:00:44]} 40. Rb2 {[%clk 0:00:33]}  Qxa5 {[%clk 0:00:40]} 41. b7 {[%clk 0:00:32]}  Rd8 {[%clk 0:00:38]} 42. b8=Q {[%clk 0:00:30]}  Rxb8 {[%clk 0:00:37]} 43. Rxb8 {[%clk 0:00:31]}  Rc2 {[%clk 0:00:15]} 44. Qxc2 {[%clk 0:00:26]}  Qxe1 {[%clk 0:00:15]} 45. Rb7+ {[%clk 0:00:24]}  Kh6 {[%clk 0:00:14]} 46. Rb1 {[%clk 0:00:22]}  Qe3 {[%clk 0:00:12]} 47. Qe2 {[%clk 0:00:21]}  Qa3 {[%clk 0:00:10]} 48. Qd2+ {[%clk 0:00:20]}  f4 {[%clk 0:00:07]} 49. gxf4 {[%clk 0:00:18]}  Qxa6 {[%clk 0:00:05]} 50. fxe5+ {[%clk 0:00:18]}  Kg7 {[%clk 0:00:03]} 51. exf6+ {[%clk 0:00:17]} 1-0


[Site "https://www.chess.com"]

[Event "Titled Tuesday Blitz February 07 Early 2023"]
[White "Fernandez Siles, Luis"]
[Black "Kozak, Adam"]
[WhiteFideId "2209420"]
[BlackFideId "753246"]
[WhiteElo "2218"]
[BlackElo "2572"]
[Result "0-1"]
[Round "03"]
[TimeControl "180+2"]
[Date "2023.02.07"]
[WhiteClock "0:00:02"]
[BlackClock "0:00:10"]

1. d4 {[%clk 0:03:00]}  Nf6 {[%clk 0:02:47]} 2. c4 {[%clk 0:02:59]}  e6 {[%clk 0:02:45]} 3. Nc3 {[%clk 0:02:59]}  c5 {[%clk 0:02:44]} 4. d5 {[%clk 0:02:58]}  exd5 {[%clk 0:02:45]} 5. cxd5 {[%clk 0:02:59]}  d6 {[%clk 0:02:46]} 6. e4 {[%clk 0:02:59]}  g6 {[%clk 0:02:46]} 7. f4 {[%clk 0:03:00]}  Bg7 {[%clk 0:02:47]} 8. Bb5+ {[%clk 0:03:00]}  Nfd7 {[%clk 0:02:47]} 9. a4 {[%clk 0:03:00]}  a6 {[%clk 0:02:47]} 10. Bd3 {[%clk 0:02:56]}  O-O {[%clk 0:02:48]} 11. Nf3 {[%clk 0:02:56]}  Qc7 {[%clk 0:02:40]} 12. O-O {[%clk 0:02:50]}  c4 {[%clk 0:02:40]} 13. Bc2 {[%clk 0:02:50]}  Nc5 {[%clk 0:02:40]} 14. h3 {[%clk 0:02:49]}  Nbd7 {[%clk 0:02:39]} 15. Be3 {[%clk 0:02:35]}  Rb8 {[%clk 0:02:35]} 16. a5 {[%clk 0:02:31]}  Re8 {[%clk 0:02:32]} 17. Bd4 {[%clk 0:02:29]}  Bf8 {[%clk 0:02:17]} 18. f5 {[%clk 0:02:22]}  Ne5 {[%clk 0:02:12]} 19. Bxe5 {[%clk 0:01:56]}  dxe5 {[%clk 0:02:13]} 20. d6 {[%clk 0:01:54]}  Qxd6 {[%clk 0:02:09]} 21. Nd5 {[%clk 0:01:54]}  gxf5 {[%clk 0:01:05]} 22. Ng5 {[%clk 0:01:36]}  Qg6 {[%clk 0:01:02]} 23. h4 {[%clk 0:01:29]}  f4 {[%clk 0:00:57]} 24. Nxf4 {[%clk 0:00:45]}  exf4 {[%clk 0:00:51]} 25. Rxf4 {[%clk 0:00:44]}  Nd3 {[%clk 0:00:31]} 26. Bxd3 {[%clk 0:00:37]}  cxd3 {[%clk 0:00:32]} 27. Nxf7 {[%clk 0:00:32]}  Be6 {[%clk 0:00:23]} 28. Ng5 {[%clk 0:00:29]}  Bh6 {[%clk 0:00:19]} 29. Qxd3 {[%clk 0:00:24]}  Bxg5 {[%clk 0:00:19]} 30. hxg5 {[%clk 0:00:25]}  Rf8 {[%clk 0:00:16]} 31. Qd6 {[%clk 0:00:15]}  Rbd8 {[%clk 0:00:14]} 32. Rxf8+ {[%clk 0:00:14]}  Rxf8 {[%clk 0:00:15]} 33. Rd1 {[%clk 0:00:12]}  Qxe4 {[%clk 0:00:14]} 34. Qg3 {[%clk 0:00:11]}  Bd5 {[%clk 0:00:13]} 35. Rd2 {[%clk 0:00:10]}  Bc6 {[%clk 0:00:13]} 36. Rd6 {[%clk 0:00:09]}  Qf4 {[%clk 0:00:11]} 37. Qb3+ {[%clk 0:00:08]}  Qf7 {[%clk 0:00:12]} 38. Qg3 {[%clk 0:00:07]}  Qf1+ {[%clk 0:00:10]} 39. Kh2 {[%clk 0:00:07]}  Qf4 {[%clk 0:00:10]} 40. g6 {[%clk 0:00:05]}  Qxg3+ {[%clk 0:00:10]} 41. Kxg3 {[%clk 0:00:06]}  h6 {[%clk 0:00:10]} 42. Kg4 {[%clk 0:00:02]}  Kg7 {[%clk 0:00:10]} 43. g3 {[%clk 0:00:02]}  Rf6 {[%clk 0:00:10]} 0-1


[Site "https://www.chess.com"]

[Event "Titled Tuesday Blitz February 07 Early 2023"]
[White "Fernandez Guillen, Ernesto J."]
[Black "Kirillov, Dmitry"]
[WhiteFideId "3512428"]
[BlackFideId "34180572"]
[WhiteElo "2477"]
[BlackElo "2179"]
[Result "1-0"]
[Round "03"]
[TimeControl "180+2"]
[Date "2023.02.07"]
[WhiteClock "0:01:41"]
[BlackClock "0:00:04"]

1. e4 {[%clk 0:03:00]}  c5 {[%clk 0:02:59]} 2. Nf3 {[%clk 0:03:00]}  d6 {[%clk 0:02:59]} 3. d4 {[%clk 0:03:01]}  cxd4 {[%clk 0:03:00]} 4. Nxd4 {[%clk 0:03:02]}  Nf6 {[%clk 0:03:01]} 5. Nc3 {[%clk 0:03:02]}  a6 {[%clk 0:03:01]} 6. Bc4 {[%clk 0:03:03]}  e6 {[%clk 0:02:59]} 7. Bb3 {[%clk 0:03:03]}  Nc6 {[%clk 0:02:57]} 8. Be3 {[%clk 0:03:02]}  Be7 {[%clk 0:02:56]} 9. Qf3 {[%clk 0:03:03]}  Ne5 {[%clk 0:02:43]} 10. Qg3 {[%clk 0:03:01]}  b5 {[%clk 0:02:20]} 11. f4 {[%clk 0:02:57]}  Neg4 {[%clk 0:02:17]} 12. Nc6 {[%clk 0:02:48]}  Qc7 {[%clk 0:02:10]} 13. Nxe7 {[%clk 0:02:48]}  Qxe7 {[%clk 0:02:10]} 14. e5 {[%clk 0:02:43]}  dxe5 {[%clk 0:01:47]} 15. fxe5 {[%clk 0:02:44]}  Nxe3 {[%clk 0:01:47]} 16. exf6 {[%clk 0:02:38]}  Qc5 {[%clk 0:01:47]} 17. fxg7 {[%clk 0:02:26]}  Rg8 {[%clk 0:01:47]} 18. Qf3 {[%clk 0:02:25]}  Rxg7 {[%clk 0:00:53]} 19. Qxa8 {[%clk 0:02:23]}  Nxg2+ {[%clk 0:00:53]} 20. Kd1 {[%clk 0:02:21]}  Ne3+ {[%clk 0:00:30]} 21. Kc1 {[%clk 0:02:19]}  Qc7 {[%clk 0:00:12]} 22. Kb1 {[%clk 0:02:09]}  Ke7 {[%clk 0:00:08]} 23. Rc1 {[%clk 0:02:05]}  Bb7 {[%clk 0:00:06]} 24. Qa7 {[%clk 0:01:56]}  Nf5 {[%clk 0:00:06]} 25. a4 {[%clk 0:01:54]}  b4 {[%clk 0:00:06]} 26. Nb5 {[%clk 0:01:46]}  Qc6 {[%clk 0:00:03]} 27. Nd4 {[%clk 0:01:42]}  Qc7 {[%clk 0:00:03]} 28. Nxf5+ {[%clk 0:01:42]}  exf5 {[%clk 0:00:04]} 29. Qd4 {[%clk 0:01:41]} 1-0


[Site "https://www.chess.com"]